bitfinex/quotes_ETHUSD_20230118
["timestamp","ask_amount","ask_price","bid_price","bid_amount"]
[1674040331939,0.03197282,1575.4,1575.3,46.02156912]
[1674040334147,0.03197282,1575.4,1575.3,44.35865417]
[1674040334351,0.03197282,1575.4,1575.3,46.02156912]
[1674040334507,0.03197282,1575.4,1575.3,44.65860051]
[1674040334966,0.03197282,1575.4,1575.3,43.32806655]
[1674040336607,0.03197282,1575.4,1575.3,38.75163723]
[1674040337447,0.03197282,1575.4,1575.3,38.41908331]
[1674040338196,0.03197282,1575.4,1575.3,37.52369869]
[1674040339387,0.03197282,1575.4,1575.3,37.75369869]
[1674040341122,0.03197282,1575.4,1575.3,37.25974294]
[1674040341342,0.03197282,1575.4,1575.3,37.75369869]
[1674040341556,0.03197282,1575.4,1575.3,37.44824982]
[1674040341809,0.03197282,1575.4,1575.3,25.95054982]
[1674040343228,0.03197282,1575.4,1575.3,26.24834498]
[1674040343578,0.03197282,1575.4,1575.3,25.95054982]
[1674040346082,0.03197282,1575.4,1575.3,26.24830156]
[1674040346437,0.03197282,1575.4,1575.3,25.95054982]
[1674040349354,0.03197282,1575.4,1575.3,25.45659407]
[1674040350933,0.02804574,1575.4,1575.3,26.2482243]
[1674040351160,0.02804574,1575.4,1575.3,29.77070646]
[1674040351393,0.02804574,1575.4,1575.3,29.57442519]
[1674040351613,0.02804574,1575.4,1575.3,30.23980981]
[1674040354011,0.02804574,1575.4,1575.3,33.73980981]
[1674040354203,0.02804574,1575.4,1575.3,37.54988989]
[1674040354204,0.017925,1575.4,1575.3,37.54988989]
[1674040354413,0.017925,1575.4,1575.3,36.55195135]
[1674040354638,0.017925,1575.4,1575.3,38.2148663]
[1674040354877,0.017925,1575.4,1575.3,36.55195135]
[1674040355704,0.017925,1575.4,1575.3,38.2148663]
[1674040355868,0.017925,1575.4,1575.3,36.55195135]
[1674040357988,0.017925,1575.4,1575.3,38.2148663]
[1674040358221,0.017925,1575.4,1575.3,34.7148663]
[1674040358427,0.017925,1575.4,1575.3,33.05195135]
[1674040358934,5e-06,1575.4,1575.3,38.2148663]
[1674040359240,7.7452,1575.8,1575.4,20.04277]
[1674040359447,7.7452,1575.8,1575.6,15.81018407]
[1674040359697,0.066,1575.8,1575.7,25.38576407]
[1674040359871,0.07138114,1575.9,1575.7,25.94571982]
[1674040360080,0.07138114,1575.9,1575.8,22.15456407]
[1674040360330,0.07138114,1575.9,1575.8,25.94451982]
[1674040367910,0.07138114,1575.9,1575.8,25.94251982]
[1674040368224,0.07138114,1575.9,1575.8,25.94451982]
[1674040371232,0.07138114,1575.9,1575.8,25.92745036]
[1674040371795,0.07138114,1575.9,1575.8,29.1548334]
[1674040374196,0.07138114,1575.9,1575.8,35.09313221]
[1674040374454,0.07138114,1575.9,1575.8,35.75770918]
[1674040374610,0.11723507,1576.0,1575.9,1.0]
[1674040374812,0.11723507,1576.0,1575.9,17.44296651]
[1674040375020,0.11723507,1576.0,1575.9,42.27430494]
[1674040375280,0.11723507,1576.0,1575.9,45.77430494]
[1674040375866,0.11723507,1576.0,1575.9,42.27430494]
[1674040376082,0.11723507,1576.0,1575.9,45.10972797]
[1674040376410,0.11723507,1576.0,1575.9,41.60972797]
[1674040376854,0.07138114,1576.1,1575.9,53.21472797]
[1674040377182,0.07138114,1576.1,1576.0,29.15260687]
[1674040377336,0.07138114,1576.1,1576.0,32.6992337]
[1674040377699,0.07138114,1576.1,1576.0,33.3972259]
[1674040377859,0.07138114,1576.1,1576.0,44.4989259]
[1674040379435,0.07138114,1576.1,1576.0,43.8009337]
[1674040379847,0.07138114,1576.1,1576.0,43.5709337]
[1674040381325,0.07138114,1576.1,1576.0,43.8007242]
[1674040384475,0.07138114,1576.1,1576.0,38.2492514]
[1674040386684,0.07138114,1576.1,1576.0,38.4792514]
[1674040393765,0.07138114,1576.1,1576.0,37.0302514]
[1674040393981,0.07138114,1576.1,1576.0,38.7586765]
[1674040394191,0.07138114,1576.1,1576.0,40.01998626]
[1674040394480,0.07138114,1576.1,1576.0,49.17117532]
[1674040394977,0.07138114,1576.1,1576.0,45.67117532]
[1674040395335,0.1162719,1576.2,1576.1,1.0]
[1674040395549,0.1162719,1576.2,1576.1,27.89235917]
[1674040395871,0.1162719,1576.2,1576.1,28.4387765]
[1674040396078,0.1162719,1576.2,1576.1,34.40819103]
[1674040397166,0.1162719,1576.2,1576.1,35.07263887]
[1674040397382,0.07497676,1576.2,1576.1,38.80263887]
[1674040397596,0.07497676,1576.2,1576.1,40.46408131]
[1674040397762,0.07497676,1576.2,1576.1,39.13492736]
[1674040398615,0.07497676,1576.2,1576.1,40.58392736]
[1674040399334,0.07497676,1576.2,1576.1,48.58382736]
[1674040399547,0.07497676,1576.2,1576.1,49.28181956]
[1674040399879,0.07497676,1576.2,1576.1,49.94464199]
[1674040400096,0.07497676,1576.2,1576.1,49.28181956]
[1674040400497,0.07497676,1576.2,1576.1,49.94467478]
[1674040400719,0.07497676,1576.2,1576.1,49.28181956]
[1674040400938,0.07497676,1576.2,1576.1,45.78181956]
[1674040401116,0.07497676,1576.2,1576.1,43.30083832]
[1674040401637,0.07497676,1576.2,1576.1,42.6379619]
[1674040401848,0.07497676,1576.2,1576.1,41.1889619]
[1674040404096,0.07497676,1576.2,1576.1,39.89666593]
[1674040404279,0.07497676,1576.2,1576.1,33.6972514]
[1674040405770,0.07497676,1576.2,1576.1,33.9272514]
[1674040407444,0.07497676,1576.2,1576.1,30.9272514]
[1674040407766,0.07497676,1576.2,1576.1,22.9273514]
[1674040407965,0.07497676,1576.2,1576.1,16.3525814]
[1674040408638,0.07497676,1576.2,1576.1,19.3525814]
[1674040409221,0.07497676,1576.2,1576.1,19.5825814]
[1674040409431,1.53736662,1576.2,1576.1,3.18262407]
[1674040409641,1.69922006,1576.2,1576.1,3.11662407]
[1674040411231,1.69922006,1576.2,1576.1,3.34662407]
[1674040412219,1.69922006,1576.2,1576.0,0.066]
[1674040412535,1.69922006,1576.2,1575.9,0.57177619]
[1674040412536,1.449,1576.1,1575.9,0.57177619]
[1674040412746,8.03559006,1576.2,1575.9,6.62240026]
[1674040412747,1.44,1576.0,1575.9,6.62240026]
[1674040412957,1.44,1576.0,1575.9,6.68840026]
[1674040413640,2.25255901,1576.1,1575.9,19.60956026]
[1674040413849,2.25255901,1576.1,1576.0,9.69179407]
[1674040414059,2.25255901,1576.1,1576.0,9.75779407]
[1674040414266,1.449,1576.1,1576.0,9.75779407]
[1674040414513,1.449,1576.1,1576.0,22.44813407]
[1674040415215,1.449,1576.1,1576.0,22.9285514]
[1674040415471,8.17286662,1576.2,1576.0,25.9285514]
[1674040415639,8.17286662,1576.2,1576.1,3.11662407]
[1674040415849,0.14097676,1576.2,1576.1,19.03616407]
[1674040416092,0.07497676,1576.2,1576.1,19.10216407]
[1674040417951,0.07497676,1576.2,1576.1,25.44693407]
[1674040418986,0.07497676,1576.2,1576.1,27.99162748]
[1674040420507,0.07181709,1576.2,1576.1,27.99162748]
[1674040420774,0.07181709,1576.2,1576.1,28.26720363]
[1674040426646,0.07181709,1576.2,1576.1,27.99162748]
[1674040427452,0.07181709,1576.2,1576.1,25.21693407]
[1674040428725,0.07181709,1576.2,1576.1,25.44693407]
[1674040434383,0.07181709,1576.2,1576.1,25.71052437]
[1674040434589,0.07181709,1576.2,1576.1,25.44693407]
[1674040437015,0.07181709,1576.2,1576.1,25.71438218]
[1674040437447,0.07181709,1576.2,1576.1,30.90300004]
[1674040439338,0.08116774,1576.3,1576.1,35.06587646]
[1674040439548,0.08116774,1576.3,1576.2,7.61407218]
[1674040439756,0.08116774,1576.3,1576.2,26.71318218]
[1674040441532,0.08116774,1576.3,1576.2,27.3760586]
[1674040441780,0.08116774,1576.3,1576.2,32.11547947]
[1674040442907,0.08116774,1576.3,1576.2,35.61547947]
[1674040443123,7.74e-06,1576.3,1576.2,35.65059525]
[1674040443311,7.74e-06,1576.3,1576.2,32.15059525]
[1674040443902,7.74e-06,1576.3,1576.2,32.81478677]
[1674040444116,7.74e-06,1576.3,1576.2,40.92648677]
[1674040444448,0.003862,1576.6,1576.3,0.00199226]
[1674040444600,0.003862,1576.6,1576.5,3.11662407]
[1674040444832,0.003862,1576.6,1576.5,25.37610407]
[1674040445046,0.003862,1576.6,1576.5,25.44210407]
[1674040449866,0.003862,1576.6,1576.5,25.9225214]
[1674040451988,0.003862,1576.6,1576.5,25.44210407]
[1674040452365,0.003862,1576.6,1576.5,30.29470781]
[1674040452706,0.003862,1576.6,1576.5,35.24370781]
[1674040452920,0.66246584,1576.7,1576.5,35.24370781]
[1674040453127,0.66246584,1576.7,1576.6,6.34662407]
[1674040453388,0.66246584,1576.7,1576.6,25.44090407]
[1674040453548,0.66246584,1576.7,1576.6,30.21930418]
[1674040453759,0.61246584,1576.7,1576.6,30.21930418]
[1674040454211,0.61246584,1576.7,1576.6,29.73888685]
[1674040454419,0.61246584,1576.7,1576.6,30.21930418]
[1674040456167,0.61246584,1576.7,1576.6,6.8930414]
[1674040456295,0.61246584,1576.7,1576.6,25.44090407]
[1674040458278,0.61246584,1576.7,1576.6,25.9213214]
[1674040470264,0.61246584,1576.7,1576.6,25.73820698]
[1674040470528,0.61246584,1576.7,1576.6,26.21862431]
[1674040470756,0.61246584,1576.7,1576.6,29.68476712]
[1674040472953,0.61246584,1576.7,1576.6,29.38746421]
[1674040473784,0.61246584,1576.7,1576.6,29.68493912]
[1674040474785,0.61246584,1576.7,1576.6,29.38746421]
[1674040475224,0.61246584,1576.7,1576.6,29.68491699]
[1674040475891,0.61246584,1576.7,1576.6,30.34856083]
[1674040476096,0.00046584,1576.7,1576.6,30.34856083]
[1674040476309,1.32472848,1576.8,1576.7,20.02908]
[1674040476476,0.15064635,1576.9,1576.7,36.67347204]
[1674040476696,0.15064635,1576.9,1576.8,6.64407685]
[1674040476927,0.15064635,1576.9,1576.8,25.43847407]
[1674040477100,0.15064635,1576.9,1576.8,26.21634418]
[1674040477311,0.15064635,1576.9,1576.8,26.88049279]
[1674040477521,0.15064635,1576.9,1576.8,30.18356098]
[1674040477731,0.15064635,1576.9,1576.8,30.84770959]
[1674040478208,0.15064635,1576.9,1576.8,30.18356098]
[1674040480481,0.15064635,1576.9,1576.8,29.8861082]
[1674040480685,0.15064635,1576.9,1576.8,25.6888914]
[1674040480895,0.15064635,1576.9,1576.8,25.20847407]
[1674040482567,0.15064635,1576.9,1576.8,25.43847407]
[1674040482742,0.15064635,1576.9,1576.8,25.20847407]
[1674040484491,0.15064635,1576.9,1576.8,25.43847407]
[1674040490355,0.15064635,1576.9,1576.8,25.42886653]
[1674040493895,0.15064635,1576.9,1576.8,25.42686653]
[1674040494196,0.15064635,1576.9,1576.8,25.42886653]
[1674040494906,0.15064635,1576.9,1576.8,28.60618918]
[1674040497078,0.15064635,1576.9,1576.8,29.46298185]
[1674040497338,0.15064635,1576.9,1576.8,29.08660651]
[1674040498445,0.15064635,1576.9,1576.8,28.98260039]
[1674040498970,0.15064635,1576.9,1576.8,28.60618918]
[1674040499940,0.15064635,1576.9,1576.8,29.46302852]
[1674040500959,0.15064635,1576.9,1576.8,29.08660651]
[1674040504396,0.15064635,1576.9,1576.8,28.60618918]
[1674040505263,0.15064635,1576.9,1576.8,25.42886653]
[1674040513147,1.9157986,1576.9,1576.8,3.0]
[1674040513320,0.81440415,1576.9,1576.8,3.0]
[1674040513531,0.15064635,1576.9,1576.8,3.0]
[1674040513743,0.8202656,1576.9,1576.8,3.0]
[1674040514615,0.8202656,1576.9,1576.8,9.34195]
[1674040514790,0.8202656,1576.9,1576.8,9.40795]
[1674040519940,0.8202656,1576.9,1576.8,15.7499]
[1674040520153,0.15064635,1576.9,1576.8,15.9799]
[1674040521713,0.15064635,1576.9,1576.8,25.43847407]
[1674040524249,0.15064635,1576.9,1576.8,19.09652407]
[1674040527862,0.15064635,1576.9,1576.8,19.09452407]
[1674040528072,0.15064635,1576.9,1576.8,19.09652407]
[1674040531344,0.56941032,1576.9,1576.8,19.09652407]
[1674040532454,0.15064635,1576.9,1576.8,19.09652407]
[1674040541013,1.91573906,1576.9,1576.8,6.41262407]
[1674040541174,1.40913035,1576.9,1576.8,3.066]
[1674040541394,1.40913035,1576.9,1576.8,3.0]
[1674040544306,2.40268312,1576.9,1576.8,3.0]
[1674040544442,2.45495956,1576.9,1576.8,3.0]
[1674040544913,3.77288195,1576.9,1576.8,3.0]
[1674040545127,2.45495956,1576.9,1576.7,3.066]
[1674040545352,0.66419783,1576.8,1576.7,3.0]
[1674040547544,2.37373471,1576.9,1576.7,3.0]
[1674040547698,2.37373471,1576.9,1576.7,9.34236]
[1674040547699,0.23737347,1576.8,1576.7,9.34236]
[1674040547909,2.37373471,1576.9,1576.7,9.40836]
[1674040549547,1.38018194,1576.9,1576.7,9.40836]
[1674040550152,2.37373471,1576.9,1576.7,9.40836]
[1674040551087,0.66419783,1576.8,1576.7,9.40836]
[1674040552817,0.66419783,1576.8,1576.7,3.066]
[1674040552953,1.03336354,1576.8,1576.7,3.0]
[1674040556221,0.66419783,1576.8,1576.7,3.0]
[1674040559905,2.37373471,1576.9,1576.7,3.0]
[1674040560846,0.66419783,1576.8,1576.7,3.0]
[1674040561699,1.76568965,1576.8,1576.7,3.0]
[1674040562056,0.66419783,1576.8,1576.7,3.0]
[1674040562227,2.25160454,1576.8,1576.7,3.0]
[1674040564015,0.48591489,1576.8,1576.7,3.0]
[1674040564275,2.37373471,1576.9,1576.7,3.0]
[1674040564975,1.38018194,1576.9,1576.7,2.99727789]
[1674040566220,0.66419783,1576.9,1576.7,2.99727789]
[1674040566434,11.8243334,1577.0,1576.7,18.79862196]
[1674040566640,11.8243334,1577.0,1576.8,0.23]
[1674040566853,11.8243334,1577.0,1576.8,16.03024407]
[1674040567152,11.8243334,1577.0,1576.8,16.09624407]
[1674040567622,4.1034334,1577.0,1576.8,16.09624407]
[1674040567777,4.0374334,1577.0,1576.8,16.09624407]
[1674040567987,4.0374334,1577.0,1576.9,3.0]
[1674040568253,5.13877848,1577.0,1576.9,9.34155]
[1674040568467,5.20477848,1577.0,1576.9,9.40755]
[1674040570744,5.20477848,1577.0,1576.9,3.066]
[1674040570936,7.08739858,1577.0,1576.9,3.0]
[1674040571148,6.42320075,1577.0,1576.9,3.0]
[1674040572511,7.74112314,1577.0,1576.8,3.296]
[1674040572723,1.76526044,1576.9,1576.8,3.23]
[1674040572927,2.75881321,1576.9,1576.8,3.0]
[1674040573197,3.59931706,1576.9,1576.7,6.4082]
[1674040573353,1.76540104,1576.8,1576.7,6.4082]
[1674040573720,1.76540104,1576.8,1576.7,9.4082]
[1674040576349,0.72991536,1576.9,1576.7,9.4082]
[1674040576503,15.14277103,1577.0,1576.7,15.75056]
[1674040576714,14.14921826,1577.0,1576.8,3.0]
[1674040576986,13.0437037,1577.0,1576.8,9.34184]
[1674040577206,12.05015093,1577.0,1576.8,9.40784]
[1674040577457,4.10315093,1577.0,1576.8,15.74979]
[1674040577680,5.0307037,1577.0,1576.8,15.74979]
[1674040577948,5.0967037,1577.0,1576.8,15.74979]
[1674040578250,4.10315093,1577.0,1576.8,15.74979]
[1674040578467,4.03715093,1577.0,1576.8,15.74979]
[1674040581924,3.37323557,1577.0,1576.8,15.74979]
[1674040582501,4.03715093,1577.0,1576.8,15.74979]
[1674040583696,4.03715093,1577.0,1576.8,9.40784]
[1674040583918,4.68376327,1577.0,1576.8,9.40784]
[1674040586459,4.03715093,1577.0,1576.8,9.40784]
[1674040586931,4.03715093,1577.0,1576.8,15.74979]
[1674040587287,4.03715093,1577.0,1576.8,9.40784]
[1674040588665,3.35984571,1577.0,1576.8,9.40784]
[1674040588802,3.35984571,1577.0,1576.8,9.40537424]
[1674040590105,3.35984571,1577.0,1576.9,3.11662407]
[1674040590326,3.35984571,1577.0,1576.9,22.37127407]
[1674040590528,3.35984571,1577.0,1576.9,25.9176914]
[1674040590747,3.35984571,1577.0,1576.9,25.43727407]
[1674040592485,3.35984571,1577.0,1576.9,25.9176914]
[1674040592695,3.35984571,1577.0,1576.9,29.4005109]
[1674040593380,3.35984571,1577.0,1576.9,25.9176914]
[1674040594595,3.35984571,1577.0,1576.9,25.43727407]
[1674040597744,3.35984571,1577.0,1576.9,25.9176914]
[1674040600058,3.35984571,1577.0,1576.9,13.0045914]
[1674040600380,3.35984571,1577.0,1576.9,12.52417407]
[1674040601445,3.35984571,1577.0,1576.9,12.75417407]
[1674040601878,3.35984571,1577.0,1576.9,25.43727407]
[1674040602369,3.35984571,1577.0,1576.9,28.61518548]
[1674040603754,3.35984571,1577.0,1576.9,29.09560281]
[1674040606324,3.35984571,1577.0,1576.9,28.61518548]
[1674040606627,3.35984571,1577.0,1576.9,29.09560281]
[1674040608488,3.26640871,1577.0,1576.9,29.09560281]
[1674040609327,3.26640871,1577.0,1576.9,30.30160281]
[1674040609895,3.26640871,1577.0,1576.9,30.67893022]
[1674040610247,3.26640871,1577.0,1576.9,30.30160281]
[1674040611090,3.26640871,1577.0,1576.9,30.67893109]
[1674040611505,3.26640871,1577.0,1576.9,30.30160281]
[1674040612988,2.97216401,1577.0,1576.9,30.30160281]
[1674040613884,2.97216401,1577.0,1576.9,29.09560281]
[1674040614244,2.97216401,1577.0,1576.9,25.6876914]
[1674040615626,2.97216401,1577.0,1576.9,25.9176914]
[1674040615845,2.97216401,1577.0,1576.9,26.29511293]
[1674040616251,2.97216401,1577.0,1576.9,25.9176914]
[1674040618587,2.97216401,1577.0,1576.9,25.43727407]
[1674040621887,2.97216401,1577.0,1576.9,28.53564521]
[1674040622772,2.97216401,1577.0,1576.9,30.0582599]
[1674040623246,2.97216401,1577.0,1576.9,29.39335684]
[1674040623452,2.97216401,1577.0,1576.9,30.0582599]
[1674040623822,2.97216401,1577.0,1576.9,31.2682599]
[1674040624068,4.01e-06,1577.0,1576.9,34.7682599]
[1674040624280,0.16441968,1577.1,1577.0,20.02345]
[1674040624563,0.16441968,1577.1,1577.0,34.04424833]
[1674040624771,0.16441968,1577.1,1577.0,33.02742415]
[1674040625136,0.16441968,1577.1,1577.0,36.64142415]
[1674040625311,0.16441968,1577.1,1577.0,44.86152415]
[1674040626392,0.16441968,1577.1,1577.0,48.36152415]
[1674040626600,0.16441968,1577.1,1577.0,49.35876566]
[1674040626829,0.16441968,1577.1,1577.0,45.85876566]
[1674040627369,0.16441968,1577.1,1577.0,44.86152415]
[1674040627717,0.16441968,1577.1,1577.0,45.85876566]
[1674040628132,0.16441968,1577.1,1577.0,44.86152415]
[1674040628656,0.16441968,1577.1,1577.0,44.63152415]
[1674040629329,0.16441968,1577.1,1577.0,43.42152415]
[1674040630410,0.16441968,1577.1,1577.0,42.75794362]
[1674040630573,0.16441968,1577.1,1577.0,43.65152415]
[1674040631049,0.16441968,1577.1,1577.0,42.98794362]
[1674040631217,0.16441968,1577.1,1577.0,43.65152415]
[1674040631656,0.16441968,1577.1,1577.0,47.15152415]
[1674040631869,0.16441968,1577.1,1577.0,43.65152415]
[1674040634273,0.16441968,1577.1,1577.0,42.98794362]
[1674040635464,0.16441968,1577.1,1577.0,42.61064932]
[1674040635625,0.16441968,1577.1,1577.0,42.98766073]
[1674040636710,0.16441968,1577.1,1577.0,32.33756073]
[1674040637051,0.16441968,1577.1,1577.0,26.8924914]
[1674040638164,0.16441968,1577.1,1577.0,27.26955726]
[1674040638374,0.16441968,1577.1,1577.0,28.69855726]
[1674040638773,3.26441968,1577.1,1577.0,28.69855726]
[1674040638984,3.26441968,1577.1,1577.0,29.36213779]
[1674040639236,3.26441968,1577.1,1577.0,33.94738759]
[1674040639449,0.10379672,1577.3,1577.1,3.264]
[1674040639719,0.16441968,1577.4,1577.2,7.0098009]
[1674040639929,0.16441968,1577.4,1577.3,28.47638407]
[1674040640190,0.16441968,1577.4,1577.3,32.62986726]
[1674040640403,0.16441968,1577.4,1577.3,35.98217167]
[1674040640594,0.16441968,1577.4,1577.3,47.94407167]
[1674040641606,0.16441968,1577.4,1577.3,49.15007167]
[1674040642140,0.16441968,1577.4,1577.3,48.77300581]
[1674040643715,0.16441968,1577.4,1577.3,47.56700581]
[1674040643918,0.16441968,1577.4,1577.3,47.08658848]
[1674040644614,0.16441968,1577.4,1577.3,47.56700581]
[1674040646702,0.16441968,1577.4,1577.3,48.36817002]
[1674040648909,0.16441968,1577.4,1577.3,51.86817002]
[1674040649233,0.16917788,1577.5,1577.3,54.12921885]
[1674040649386,0.16917788,1577.5,1577.4,36.17103796]
[1674040649600,0.16917788,1577.5,1577.4,36.23703796]
[1674040649810,0.16917788,1577.5,1577.4,36.71745529]
[1674040650226,0.16917788,1577.5,1577.4,37.52858329]
[1674040650437,0.16917788,1577.5,1577.4,37.04816596]
[1674040650682,0.16917788,1577.5,1577.4,36.52858329]
[1674040650918,0.16917788,1577.5,1577.4,34.12558329]
[1674040658667,0.16917788,1577.5,1577.4,33.64516596]
[1674040658927,0.16917788,1577.5,1577.4,28.23224407]
[1674040659357,1.61856774,1577.5,1577.4,15.86170407]
[1674040659511,2.82356774,1577.5,1577.4,12.74508]
[1674040660604,2.82356774,1577.5,1577.4,15.74508]
[1674040661228,1.60517788,1577.5,1577.4,15.74508]
[1674040661455,1.60517788,1577.5,1577.4,15.97508]
[1674040662061,0.16917788,1577.5,1577.4,15.97508]
[1674040662308,1.60517788,1577.5,1577.4,15.97508]
[1674040663273,1.90621693,1577.5,1577.4,15.97508]
[1674040665874,0.47021693,1577.5,1577.4,15.97508]
[1674040666156,0.16917788,1577.5,1577.4,25.43124407]
[1674040667426,0.16917788,1577.5,1577.4,25.42924407]
[1674040667675,0.16917788,1577.5,1577.4,25.43124407]
[1674040668890,0.86361435,1577.9,1577.6,6.3384]
[1674040669101,0.19964905,1577.9,1577.8,3.11662407]
[1674040669316,0.19964905,1577.9,1577.8,31.46834407]
[1674040669561,0.19964905,1577.9,1577.8,32.2447614]
[1674040670376,0.19964905,1577.9,1577.8,25.9068314]
[1674040670589,0.19964905,1577.9,1577.8,25.42641407]
[1674040671279,0.19964905,1577.9,1577.8,28.03243948]
[1674040671468,0.19964905,1577.9,1577.8,29.57863216]
[1674040672657,0.19964905,1577.9,1577.8,28.51285681]
[1674040674841,0.19964905,1577.9,1577.8,28.03243948]
[1674040677489,0.19964905,1577.9,1577.8,28.51285681]
[1674040679008,0.19964905,1577.9,1577.8,25.6768314]
[1674040679225,1.63564905,1577.9,1577.8,25.19641407]
[1674040679440,0.19964905,1577.9,1577.8,25.19641407]
[1674040679769,1.63564905,1577.9,1577.8,25.19641407]
[1674040680162,0.19964905,1577.9,1577.8,25.19641407]
[1674040680405,1.63564905,1577.9,1577.8,18.85848407]
[1674040680637,1.86561049,1577.9,1577.8,19.08848407]
[1674040681947,1.86561049,1577.9,1577.8,0.066]
[1674040682159,3.06761049,1577.9,1577.7,0.066]
[1674040682369,3.06761049,1577.9,1577.6,19.08144]
[1674040682370,1.86561049,1577.9,1577.6,19.08144]
[1674040682615,0.18656105,1577.8,1577.6,15.85954407]
[1674040683208,1.62256105,1577.8,1577.7,3.11662407]
[1674040683421,1.62256105,1577.8,1577.7,9.45496407]
[1674040683791,0.18656105,1577.8,1577.7,15.85930407]
[1674040683969,1.86561049,1577.9,1577.7,22.19764407]
[1674040684316,0.42961049,1577.9,1577.7,22.19764407]
[1674040684548,0.19964905,1577.9,1577.7,22.19764407]
[1674040684689,0.19964905,1577.9,1577.8,3.0]
[1674040684895,0.19964905,1577.9,1577.8,15.67586]
[1674040685112,0.19964905,1577.9,1577.8,15.74186]
[1674040686014,0.19964905,1577.9,1577.8,25.42641407]
[1674040691240,0.19964905,1577.9,1577.8,28.60288948]
[1674040693565,0.19763623,1577.9,1577.8,28.60288948]
[1674040694319,0.19763623,1577.9,1577.8,30.14908216]
[1674040698000,0.19763623,1577.9,1577.8,30.24553283]
[1674040698304,0.213031,1578.2,1577.9,1.0]
[1674040698449,0.213031,1578.2,1578.0,3.44662407]
[1674040698659,0.213031,1578.2,1578.1,31.46354407]
[1674040698874,0.213031,1578.2,1578.1,31.75954407]
[1674040704714,0.213031,1578.2,1578.1,25.42281407]
[1674040711720,0.213031,1578.2,1578.1,19.08608407]
[1674040714764,0.213031,1578.2,1578.1,19.08408407]
[1674040715127,0.213031,1578.2,1578.1,19.08608407]
[1674040715506,0.213031,1578.2,1578.1,19.08408407]
[1674040715718,0.213031,1578.2,1578.1,6.18262407]
[1674040715930,0.213031,1578.2,1578.1,3.066]
[1674040716158,0.213031,1578.2,1578.1,3.0]
[1674040716612,0.32244882,1578.2,1578.1,3.0]
[1674040716963,3.42907324,1578.2,1578.0,6.40285]
[1674040717172,1.429,1578.1,1578.0,0.066]
[1674040717417,1.429,1578.1,1577.9,0.066]
[1674040717665,1.429,1578.1,1577.8,6.40375]
[1674040717666,3.09265462,1578.1,1577.8,6.40375]
[1674040717806,0.30926546,1578.0,1577.8,9.52037407]
[1674040718246,0.30926546,1578.0,1577.8,9.51837407]
[1674040718467,0.30926546,1578.0,1577.8,9.52037407]
[1674040719624,0.30926546,1578.0,1577.9,3.0]
[1674040720919,1.429,1578.1,1577.9,3.0]
[1674040721137,1.429,1578.1,1577.9,2.85832922]
[1674040723613,1.429,1578.1,1577.9,2.85832922]
[1674040724432,0.213031,1578.2,1578.0,3.11662407]
[1674040724694,0.213031,1578.2,1578.1,22.35681407]
[1674040724908,0.213031,1578.2,1578.1,22.42281407]
[1674040725325,0.215031,1578.2,1578.1,22.42081407]
[1674040725643,0.213031,1578.2,1578.1,22.42281407]
[1674040729010,0.213031,1578.2,1578.1,16.08608407]
[1674040729792,0.32244882,1578.2,1578.1,6.63273]
[1674040730004,0.32244882,1578.2,1578.1,9.40273]
[1674040730641,0.32244882,1578.2,1578.1,3.066]
[1674040730883,0.32244882,1578.2,1578.1,3.0]
[1674040731313,0.32244882,1578.2,1578.0,3.066]
[1674040731520,0.32244882,1578.2,1578.0,3.0]
[1674040732541,2.41541412,1578.2,1578.0,3.0]
[1674040732757,1.90625507,1578.1,1578.0,3.0]
[1674040733006,0.24154141,1578.1,1578.0,3.0]
[1674040733325,0.90550671,1578.1,1578.0,3.0]
[1674040733640,0.85550671,1578.1,1578.0,3.0]
[1674040733949,1.63454141,1578.1,1578.0,3.0]
[1674040734567,2.29850671,1578.1,1578.0,3.0]
[1674040734778,3.29918617,1578.1,1578.0,3.0]
[1674040734967,1.0,1578.0,1577.9,0.066]
[1674040735193,4.86351786,1578.0,1577.7,6.4041]
[1674040735420,1.431,1577.8,1577.7,9.52072407]
[1674040735569,1.431,1577.8,1577.7,9.75072407]
[1674040735785,1.431,1577.8,1577.7,16.08906407]
[1674040736100,2.4928384,1578.0,1577.7,19.08906407]
[1674040736336,9.40861862,1578.0,1577.8,3.0]
[1674040736642,9.47461862,1578.0,1577.8,9.33789]
[1674040736854,1.82891862,1578.0,1577.8,15.74182]
[1674040737062,1.433,1578.0,1577.8,15.74182]
[1674040740861,1.63454141,1578.1,1577.8,25.19637407]
[1674040741067,1.443,1578.1,1577.8,25.19637407]
[1674040741283,2.10691978,1578.1,1577.8,25.19637407]
[1674040741858,2.10891978,1578.1,1577.8,25.19437407]
[1674040742010,2.10691978,1578.1,1577.8,25.19637407]
[1674040743017,1.443,1578.1,1577.9,0.23]
[1674040743321,1.443,1578.1,1578.0,6.33713]
[1674040743530,2.55646214,1578.1,1578.0,6.40313]
[1674040743742,1.443,1578.1,1578.0,6.40313]
[1674040744322,0.9863686,1578.2,1578.0,6.40313]
[1674040744534,1.98695747,1578.2,1578.0,6.40313]
[1674040744845,0.9863686,1578.2,1578.0,6.40313]
[1674040746441,2.98074359,1578.2,1578.0,6.40313]
[1674040746658,1.96283099,1578.1,1578.0,6.40313]
[1674040751789,2.95638376,1578.1,1578.0,0.066]
[1674040751999,2.95638376,1578.1,1577.9,0.23]
[1674040752000,5.05038637,1578.1,1577.8,3.066]
[1674040752270,3.10814686,1578.0,1577.8,3.0]
[1674040752478,3.10377503,1578.0,1577.8,3.0]
[1674040752626,0.3103775,1577.9,1577.8,3.0]
[1674040753052,1.97601757,1577.9,1577.8,3.0]
[1674040753257,1.97601757,1577.9,1577.7,0.066]
[1674040753258,3.40501757,1577.9,1577.7,0.066]
[1674040753518,3.10567741,1577.8,1577.6,6.40469]
[1674040753729,2.10431001,1577.8,1577.6,9.52131407]
[1674040754051,1.78771525,1577.8,1577.6,9.52131407]
[1674040754267,2.45202526,1577.8,1577.6,9.52131407]
[1674040754500,1.78771525,1577.8,1577.6,9.52131407]
[1674040755414,1.78771525,1577.8,1577.6,15.86005407]
[1674040755622,2.45202526,1577.8,1577.6,15.8572245]
[1674040756052,1.78771525,1577.8,1577.6,15.8572245]
[1674040756267,2.48368751,1577.9,1577.6,22.1959645]
[1674040756415,2.41768751,1577.9,1577.6,22.1959645]
[1674040758863,2.41768751,1577.9,1577.6,22.1499645]
[1674040759253,1.443,1577.9,1577.7,3.0]
[1674040759535,1.443,1577.9,1577.8,6.33793]
[1674040759704,1.443,1577.9,1577.8,6.40393]
[1674040763778,2.09831001,1578.0,1577.8,6.40393]
[1674040765071,0.66431001,1577.9,1577.8,0.066]
[1674040765271,0.66431001,1577.9,1577.7,9.40407]
[1674040765272,3.31360603,1577.9,1577.7,9.40407]